bitfinex/quotes_SOLUSD_20260108
["timestamp","ask_amount","ask_price","bid_price","bid_amount"]
[1767892952326,0.68200531,137.86,137.83,7.25531086]
[1767892952712,0.68200531,137.86,137.82,4.00872369]
[1767892953017,10.83443015,137.87,137.82,0.62777321]
[1767892953018,11.49452009,137.87,137.82,0.62777321]
[1767892953206,11.49452009,137.87,137.82,4.00872369]
[1767892953406,4.04122865,137.86,137.82,0.62777321]
[1767892953633,4.04122865,137.86,137.82,0.56777321]
[1767892953832,4.04122865,137.86,137.82,7.82359867]
[1767892954329,0.66027817,137.86,137.82,7.82359867]
[1767892954930,4.04122865,137.86,137.82,7.82359867]
[1767892955330,0.66027817,137.83,137.76,8.65670617]
[1767892955628,7.25400322,137.86,137.76,0.72098194]
[1767892955629,3.38095048,137.81,137.76,0.72098194]
[1767892956431,3.38095048,137.8,137.76,0.72098194]
[1767892956614,7.25584095,137.82,137.77,0.72098194]
[1767892956932,10.63679143,137.82,137.77,7.97910412]
[1767892957134,10.63679143,137.82,137.75,18.1481412]
[1767892957135,25.39544332,137.82,137.75,7.25931729]
[1767892957335,3.38095048,137.77,137.73,7.98143969]
[1767892958633,9.40533308,137.77,137.74,0.72098194]
[1767892959525,9.40533308,137.77,137.73,7.26045775]
[1767892959723,7.91844167,137.78,137.73,7.98143969]
[1767892960040,17.32377475,137.78,137.73,7.98143969]
[1767892960340,9.40533308,137.77,137.73,7.98143969]
[1767892960539,7.91844167,137.78,137.73,7.98143969]
[1767892960838,17.32359822,137.78,137.74,0.72098194]
[1767892961221,10.06561125,137.78,137.74,7.98100242]
[1767892961520,17.3236271,137.78,137.74,0.72098194]
[1767892962765,0.66027817,137.74,137.7,0.72098194]
[1767892962940,10.06561125,137.74,137.7,0.72098194]
[1767892963241,9.40533308,137.74,137.71,0.72098194]
[1767892964430,9.40533308,137.74,137.71,7.98259235]
[1767892965626,0.66027817,137.75,137.71,7.98259235]
[1767892965827,10.06561125,137.75,137.71,7.98259235]
[1767892966346,17.32518909,137.75,137.71,7.98259235]
[1767892966642,17.32518909,137.75,137.71,0.72098194]
[1767892967642,13.24,137.77,137.66,7.26391556]
[1767892967643,0.66027817,137.71,137.66,7.26391556]
[1767892967822,0.66027817,137.69,137.66,7.26391556]
[1767892968140,0.66027817,137.69,137.65,0.72098194]
[1767892968318,9.40533308,137.69,137.65,0.72098194]
[1767892968521,0.66027817,137.7,137.65,0.72098194]
[1767892968739,10.06561125,137.7,137.65,0.72098194]
[1767892969039,9.40533308,137.69,137.65,0.72098194]
[1767892969244,10.06561125,137.69,137.65,7.98560072]
[1767892969544,0.66027817,137.69,137.65,7.98560072]
[1767892969848,17.32726915,137.71,137.67,7.98472858]
[1767892970056,10.06561125,137.71,137.67,0.72098194]
[1767892970342,0.66027817,137.72,137.68,9.40533308]
[1767892970533,0.66027817,137.72,137.69,9.40533308]
[1767892970732,0.66027817,137.72,137.68,9.40533308]
[1767892971440,17.32582825,137.74,137.69,10.12631502]
[1767892971939,17.32582825,137.74,137.7,0.72098194]
[1767892972123,0.66027817,137.74,137.7,0.72098194]
[1767892972745,16.66494655,137.75,137.7,0.72098194]
[1767892972933,17.32522472,137.75,137.7,0.72098194]
[1767892973135,9.40533308,137.75,137.71,0.72098194]
[1767892973324,10.06561125,137.77,137.72,0.72098194]
[1767892973848,0.66027817,137.77,137.73,0.72098194]
[1767892974021,17.32417844,137.77,137.73,0.72098194]
[1767892977929,0.66027817,137.77,137.73,7.98150543]
[1767892978263,7.91841513,137.78,137.74,0.72098194]
[1767892978553,11.29445834,137.78,137.74,0.72098194]
[1767892979165,4.03632138,137.77,137.72,0.72098194]
[1767892979332,4.03632138,137.77,137.72,7.98198627]
[1767892979535,4.03632138,137.77,137.73,0.72098194]
[1767892980254,0.66027817,137.76,137.72,7.26100433]
[1767892980835,0.66027817,137.76,137.72,7.98198627]
[1767892981342,2.16095351,137.77,137.73,0.72098194]
[1767892981593,10.07936248,137.78,137.73,0.72098194]
[1767892982090,0.66027817,137.77,137.73,0.72098194]
[1767892982306,2.82123168,137.77,137.73,0.72098194]
[1767892982806,10.07972884,137.77,137.73,7.98150052]
[1767892983904,0.66083182,137.76,137.72,9.42194302]
[1767892985016,0.66083182,137.76,137.73,2.16095351]
[1767892985876,0.66083182,137.76,137.72,9.42194302]
[1767892986083,0.66083182,137.76,137.72,7.26098951]
[1767892986285,0.66083182,137.76,137.72,9.42194302]
[1767892986905,0.72206638,137.75,137.71,22.68235255]
[1767892987089,0.72206638,137.75,137.72,2.16095351]
[1767892987274,0.72206638,137.76,137.72,2.16095351]
[1767892987476,0.72206638,137.76,137.72,2.8327646]
[1767892987895,0.72206638,137.77,137.73,0.67181109]
[1767892988098,0.72206638,137.76,137.72,2.16095351]
[1767892988708,0.72206638,137.76,137.72,2.8327646]
[1767892988893,0.72206638,137.76,137.72,10.09373981]
[1767892989298,7.98026421,137.78,137.74,0.67181109]
[1767892989500,7.25763043,137.79,137.75,0.67181109]
[1767892989815,7.25763043,137.79,137.75,2.8327646]
[1767892990110,0.72206638,137.8,137.76,2.8327646]
[1767892990313,7.97911243,137.8,137.76,0.67181109]
[1767892990488,10.14006594,137.8,137.76,0.67181109]
[1767892990798,2.88301989,137.78,137.74,0.67181109]
[1767892991113,10.14129507,137.78,137.74,0.67181109]
[1767892991714,7.98034156,137.78,137.74,7.93178641]
[1767892992213,7.98034156,137.78,137.74,0.67181109]
[1767892992398,7.98034156,137.78,137.74,0.61181109]
[1767892993014,10.14129507,137.78,137.74,0.61181109]
[1767892993892,0.72206638,137.77,137.73,22.68123796]
[1767892994088,10.14129507,137.78,137.73,22.68123796]
[1767892994294,0.72206638,137.77,137.73,22.68123796]
[1767892994499,0.72206638,137.77,137.73,23.35304905]
[1767892995010,10.14129507,137.78,137.74,0.67181109]
[1767892996113,0.72206638,137.74,137.69,0.67181109]
[1767892996302,2.88301989,137.74,137.69,13.93181109]
[1767892996500,2.88301989,137.74,137.67,18.15870167]
[1767892996501,2.88301989,137.71,137.66,7.26426272]
[1767892996706,0.72206638,137.69,137.66,7.26426272]
[1767892997026,0.69206639,137.69,137.66,7.26426272]
[1767892997534,0.69206639,137.69,137.67,7.26371564]
[1767892997821,0.66206638,137.69,137.66,7.26404914]
[1767892998407,0.66206638,137.69,137.65,23.35736592]
[1767892998718,13.05630574,137.69,137.63,0.67181109]
[1767892998917,13.05630574,137.69,137.62,6.6801107]
[1767892998918,7.26058229,137.73,137.65,13.05819601]
[1767892999226,5.79358705,137.71,137.66,5.79358705]
[1767892999605,5.79358705,137.71,137.65,26.9900071]
[1767892999802,0.72206638,137.7,137.65,26.9900071]
[1767893000213,0.72206638,137.69,137.65,26.9900071]
[1767893004117,0.72206638,137.69,137.65,21.19642005]
[1767893004833,0.72206638,137.69,137.65,26.31819601]
[1767893005125,0.72206638,137.68,137.65,26.31819601]
[1767893005330,0.69206638,137.68,137.65,26.31819601]
[1767893005829,0.69206638,137.68,137.65,20.52460896]
[1767893006012,18.1507027,137.74,137.66,0.67181109]
[1767893006205,5.79358705,137.73,137.67,5.79358705]
[1767893006407,7.26110949,137.72,137.67,5.79358705]
[1767893006605,7.26110949,137.72,137.68,5.79358705]
[1767893007007,7.26110949,137.72,137.67,7.26367232]
[1767893007328,0.72206638,137.71,137.68,5.79358705]
[1767893007939,0.72206638,137.7,137.65,13.93181109]
[1767893008117,0.72206638,137.69,137.65,13.26]
[1767893008630,0.72206638,137.68,137.65,13.26]
[1767893008822,0.72206638,137.68,137.64,5.79358705]
[1767893009016,0.72206638,137.66,137.62,5.79358705]
[1767893009626,0.72206638,137.66,137.63,5.79358705]
[1767893010021,0.72206638,137.66,137.63,13.05925032]
[1767893010334,6.51565343,137.7,137.65,5.79358705]
[1767893010632,0.72206638,137.69,137.64,6.46539814]
[1767893011224,0.72206638,137.69,137.65,6.46539814]
[1767893011627,0.72206638,137.73,137.68,0.67181109]
[1767893011828,12.27641692,137.83,137.71,6.46539814]
[1767893011829,0.72206638,137.75,137.71,6.46539814]
[1767893012141,6.51565343,137.76,137.72,0.67181109]
[1767893012517,6.51565343,137.76,137.71,5.79358705]
[1767893012720,0.72206638,137.76,137.71,5.79358705]
[1767893013137,0.72206638,137.76,137.72,5.79358705]
[1767893013359,7.93758658,137.77,137.73,5.79358705]
[1767893013645,0.67911232,137.77,137.74,5.79358705]
[1767893014216,7.93773324,137.77,137.74,5.79358705]
[1767893015136,7.93773324,137.77,137.73,0.71758799]
[1767893015442,7.93773324,137.77,137.73,6.51117504]
[1767893015854,7.93773324,137.77,137.69,7.26239704]
[1767893015855,5.79358705,137.74,137.69,7.26239704]
[1767893016017,13.05406638,137.74,137.69,13.05598409]
[1767893016217,13.05406638,137.74,137.67,13.97758799]
[1767893016218,13.05406638,137.74,137.67,0.71758799]
[1767893016442,13.05406638,137.74,137.68,5.79358705]
[1767893016619,31.20420432,137.74,137.69,5.79358705]
[1767893018044,7.94019061,137.73,137.69,5.79358705]
[1767893018550,7.94019061,137.73,137.68,2.87967957]
[1767893019140,10.10228219,137.73,137.68,2.87967957]
[1767893022445,0.67612006,137.72,137.68,0.71758799]
[1767893022634,0.6790824,137.71,137.66,10.14384931]
[1767893023149,6.46970711,137.72,137.68,0.71758799]
[1767893023441,5.79358705,137.72,137.69,0.71758799]
[1767893023645,5.79358705,137.72,137.7,0.71758799]
[1767893024344,5.79358705,137.72,137.69,0.71758799]
[1767893024847,13.0547626,137.72,137.69,0.71758799]
[1767893025025,5.79358705,137.72,137.7,2.87967957]
[1767893025824,5.79358705,137.72,137.7,0.71758799]
[1767893026030,5.79358705,137.72,137.7,2.87967957]
[1767893027848,20.51913517,137.76,137.71,2.16209158]
[1767893028048,20.51913517,137.76,137.7,7.26210318]
[1767893028349,22.68122675,137.76,137.71,2.87967957]
[1767893028943,0.37988673,137.75,137.71,2.16209158]
[1767893029145,0.37988673,137.75,137.7,2.87967957]
[1767893029855,0.67911232,137.74,137.7,2.87967957]
[1767893030380,0.37988673,137.75,137.65,26.09273383]
[1767893030381,0.67911232,137.71,137.65,26.09273383]
[1767893030649,0.67911232,137.71,137.66,2.87967957]
[1767893030839,0.67911232,137.7,137.66,9.4262832]
[1767893031442,0.67911232,137.7,137.65,7.26466194]
[1767893031651,0.67911232,137.7,137.65,9.42675352]
[1767893032963,0.67911232,137.7,137.66,7.26416991]
[1767893033461,1.05899905,137.69,137.65,9.4266636]
[1767893034865,1.05899905,137.69,137.65,7.26457202]
[1767893035042,1.05899905,137.69,137.65,9.4266636]
[1767893036770,1.05899905,137.69,137.66,2.16209158]
[1767893037262,0.67911232,137.68,137.65,9.4266636]
[1767893038154,0.67911232,137.68,137.65,7.26457202]
[1767893038371,0.67911232,137.67,137.62,10.35090054]
[1767893038561,0.67911232,137.7,137.66,2.87967957]
[1767893038751,0.67911232,137.72,137.68,2.16209158]
[1767893038956,0.67911232,137.71,137.66,0.71758799]
[1767893039149,0.67911232,137.71,137.67,2.16209158]
[1767893039855,0.67911232,137.71,137.68,2.16209158]
[1767893040052,21.19990465,137.73,137.69,2.16209158]
[1767893040250,0.67911232,137.73,137.7,2.16209158]
[1767893040461,0.67911232,137.73,137.71,2.16209158]
[1767893040772,0.67911232,137.73,137.66,7.98155387]
[1767893040773,0.099,137.71,137.66,7.98155387]
[1767893040963,3.47606945,137.71,137.66,11.35862332]
[1767893042472,7.84027418,137.7,137.66,11.35862332]
[1767893042855,7.84027418,137.7,137.65,7.9849728]
[1767893043175,7.84027418,137.7,137.66,0.72039105]
[1767893043359,7.84027418,137.7,137.66,11.36159055]
[1767893043671,7.84027418,137.7,137.66,7.9845211]
[1767893043977,0.58294956,137.72,137.68,0.72039105]
[1767893044349,11.2213934,137.72,137.68,0.72039105]
[1767893044669,11.22091972,137.73,137.68,11.36061266]
[1767893045769,7.84385027,137.73,137.68,11.36061266]
[1767893046555,11.22091972,137.73,137.68,7.98354321]
[1767893047474,11.22091972,137.73,137.68,0.72039105]
[1767893047686,0.099,137.72,137.68,0.72039105]
[1767893048554,31.41058997,137.74,137.7,0.67473442]
[1767893048555,13.26,137.74,137.7,0.67473442]
[1767893048747,3.95517951,137.74,137.69,0.67473442]
[1767893049071,0.1037911,137.73,137.69,0.67473442]
[1767893049673,0.1037911,137.73,137.69,11.31443201]
[1767893050062,0.56871807,137.7,137.65,0.67473442]
[1767893050264,3.37706945,137.7,137.65,0.67473442]
[1767893050978,3.37706945,137.69,137.64,11.31690882]
[1767893051156,3.37706945,137.7,137.64,11.31690882]
[1767893051359,16.63706945,137.72,137.66,4.05180387]
[1767893051672,3.37706945,137.71,137.65,11.31645511]
[1767893052169,7.26216412,137.7,137.65,11.31645511]
[1767893052674,7.26216412,137.7,137.65,7.93938566]
[1767893052892,10.63923357,137.7,137.65,7.93938566]
[1767893054382,7.26216412,137.7,137.65,11.31645511]
[1767893054583,7.26188121,137.71,137.67,0.67473442]
[1767893054874,20.52125534,137.72,137.68,0.67473442]
[1767893055050,20.52125534,137.72,137.67,3.37706945]
[1767893055051,10.63659758,137.75,137.7,4.05180387]
[1767893055774,10.63659758,137.75,137.7,0.67473442]
[1767893057298,7.25952813,137.75,137.7,0.67473442]
[1767893057500,10.63659758,137.75,137.7,0.67473442]
[1767893057882,10.63659758,137.75,137.7,7.93680919]
[1767893058088,7.25952813,137.75,137.71,0.67473442]
[1767893058296,10.63659758,137.75,137.71,0.67473442]
[1767893058784,7.25952813,137.75,137.71,0.67473442]
[1767893058986,10.63554371,137.77,137.72,0.67473442]
[1767893060489,10.63554371,137.77,137.73,0.67473442]
[1767893060692,109.63319943,137.78,137.74,0.67473442]
[1767893061200,113.01026888,137.78,137.74,0.67473442]
[1767893061500,109.63319943,137.78,137.74,0.67473442]
[1767893061703,102.375,137.78,137.74,0.67473442]
[1767893061895,105.75206945,137.78,137.74,0.67473442]
[1767893062205,113.01001816,137.78,137.74,0.67473442]
[1767893062904,109.63294871,137.78,137.74,0.67473442]
[1767893063100,3.37706945,137.77,137.72,7.93575246]
[1767893063298,3.37706945,137.77,137.73,0.67473442]
[1767893064411,7.25900116,137.76,137.73,0.67473442]
[1767893065386,3.37706945,137.75,137.7,0.67473442]
[1767893065693,3.37706945,137.71,137.64,0.67473442]
[1767893065914,3.37706945,137.69,137.65,0.67473442]
[1767893066412,3.37706945,137.69,137.65,7.93936197]
[1767893066714,3.37706945,137.68,137.65,0.67473442]
[1767893066916,3.37706945,137.67,137.63,7.9404151]
[1767893067381,3.37706945,137.66,137.63,0.67473442]
[1767893068905,10.64143087,137.66,137.63,0.67473442]
[1767893069312,7.26436142,137.66,137.63,0.67473442]
[1767893069611,10.64143087,137.66,137.63,0.67473442]
[1767893070207,10.64200531,137.65,137.61,0.67473442]
[1767893070409,3.37706945,137.64,137.6,0.67473442]
[1767893072403,3.37706945,137.64,137.6,7.94216507]
[1767893072603,9.42361812,137.64,137.6,7.94216507]
[1767893073414,9.42361812,137.64,137.61,0.67308616]
[1767893074824,9.42361812,137.63,137.61,0.67308616]
[1767893075024,9.42361812,137.63,137.59,0.67308616]
[1767893077605,16.68966019,137.63,137.58,7.94112754]
[1767893078220,16.68966019,137.63,137.59,0.67308616]
[1767893078809,16.68966019,137.63,137.57,17.56550492]
[1767893079008,9.42361812,137.61,137.58,0.67308616]
[1767893079206,25.4306864,137.63,137.58,0.67308616]
[1767893079207,9.42361812,137.62,137.58,0.67308616]
[1767893079718,9.42361812,137.62,137.57,0.2]
[1767893079926,9.42361812,137.62,137.57,0.87308616]
[1767893080918,16.69024012,137.62,137.57,8.14203215]
[1767893081237,16.68960511,137.63,137.58,0.67308616]
[1767893081534,9.42361812,137.61,137.57,0.87308616]
[1767893082215,9.42361812,137.61,137.58,0.67308616]
[1767893082633,25.43063132,137.63,137.58,0.67308616]
[1767893082842,9.42361812,137.61,137.58,0.67308616]
[1767893083139,16.69055107,137.61,137.58,0.67308616]
[1767893083937,16.69019476,137.62,137.58,0.67308616]
[1767893084239,9.42361812,137.62,137.59,0.67308616]
[1767893085929,16.69006354,137.62,137.59,0.67308616]
[1767893086516,7.26608016,137.63,137.59,0.67308616]
[1767893086739,9.42361812,137.62,137.59,0.67308616]
[1767893087046,132.32414774,137.64,137.6,0.67308616]
[1767893087216,119.06414774,137.64,137.6,0.67308616]
[1767893087519,9.42361812,137.63,137.6,0.67308616]
[1767893089140,16.68954206,137.63,137.6,0.67308616]
[1767893089936,9.42361812,137.62,137.6,0.67308616]
[1767893090457,9.42361812,137.61,137.58,0.67308616]
[1767893090649,9.42361812,137.6,137.58,0.67308616]
[1767893092136,9.42361812,137.59,137.57,0.2]
[1767893092342,9.42361812,137.58,137.57,0.2]
[1767893092639,9.42361812,137.59,137.57,0.2]
[1767893093844,9.3936181,137.59,137.57,0.2]
[1767893094247,16.66165218,137.59,137.57,0.2]
[1767893094644,10.65341848,137.59,137.57,0.2]
[1767893095732,7.26803408,137.59,137.57,0.2]
[1767893095953,10.65341848,137.59,137.57,0.87308616]
[1767893096651,10.65341848,137.59,137.57,0.2]
[1767893097361,3.3853844,137.58,137.56,13.75728114]
[1767893097860,7.26803408,137.59,137.56,13.75728114]
[1767893098152,3.3853844,137.57,137.54,0.87308616]
[1767893098447,3.3853844,137.59,137.55,0.67308616]
[1767893098628,10.65369501,137.59,137.55,0.67308616]
[1767893100235,3.3853844,137.58,137.55,0.67308616]
[1767893100553,3.3853844,137.56,137.54,0.2]
[1767893100953,3.3853844,137.57,137.54,0.87308616]
[1767893101259,3.3853844,137.58,137.54,0.87308616]
[1767893101445,3.3853844,137.58,137.55,0.67308616]
[1767893101757,10.65369501,137.59,137.55,0.67308616]
[1767893102134,10.65282626,137.6,137.55,0.67308616]
[1767893102329,10.65282626,137.6,137.54,0.90617109]
[1767893102330,3.3853844,137.58,137.54,0.90617109]
[1767893102544,2.16695061,137.58,137.55,0.70617109]
[1767893103070,13.26,137.63,137.57,0.70617109]
[1767893103234,7.26590161,137.63,137.59,0.70617109]
[1767893103433,27.59749655,137.63,137.59,0.70617109]
[1767893103833,25.43054594,137.63,137.59,0.70617109]
[1767893104030,27.59749655,137.63,137.59,0.70617109]
[1767893104639,7.26590161,137.63,137.59,0.70617109]
[1767893104840,27.59749655,137.63,137.59,0.70617109]
[1767893105061,2.16695061,137.62,137.57,0.70617109]
[1767893106358,7.26691374,137.61,137.57,0.70617109]
[1767893106736,7.26655548,137.62,137.59,0.65965623]
[1767893108151,7.26597657,137.63,137.6,0.65965623]
[1767893108344,9.43246831,137.64,137.6,0.65965623]
[1767893109738,7.2655177,137.64,137.6,0.65965623]
[1767893109935,7.26501679,137.65,137.62,0.65965623]
[1767893110358,7.26501679,137.65,137.62,0.59965625]
[1767893110876,2.16695061,137.68,137.63,2.16695061]
[1767893111037,31.49165209,137.69,137.63,2.16695061]
[1767893111355,31.49165209,137.69,137.62,2.16695061]
[1767893111356,7.58757311,137.68,137.62,2.16695061]
[1767893111535,2.16695061,137.68,137.62,2.16695061]
[1767893111942,9.43016966,137.68,137.62,9.43320386]
[1767893112263,9.43016966,137.68,137.63,0.65965623]
[1767893112766,13.26,137.69,137.64,0.65965623]
[1767893113060,0.07423147,137.68,137.65,2.16695061]
[1767893113371,0.07423147,137.68,137.64,2.16695061]
[1767893113542,7.26302022,137.69,137.65,0.65965623]
[1767893113739,7.26302022,137.69,137.6,0.65965623]
[1767893113740,0.07423147,137.65,137.6,0.65965623]
[1767893113955,2.24118208,137.64,137.6,0.65965623]
[1767893114154,0.07423147,137.65,137.6,0.65965623]
[1767893114560,7.26535655,137.64,137.6,0.65965623]
[1767893114844,7.26535655,137.64,137.6,7.92704735]
[1767893115052,9.43230716,137.64,137.6,0.65965623]
[1767893116961,7.26535655,137.64,137.6,0.65965623]
[1767893117679,7.264947,137.65,137.61,0.65965623]
[1767893117855,9.50612908,137.65,137.61,0.65965623]
[1767893118274,0.02551084,137.62,137.57,13.26]
[1767893118474,2.16695061,137.62,137.57,10.09534222]
[1767893118663,2.16695061,137.61,137.57,0.65965623]
[1767893118877,9.43413906,137.61,137.57,0.65965623]
[1767893119605,7.26718845,137.61,137.57,7.92860854]
[1767893119808,7.26718845,137.61,137.57,0.65965623]
[1767893120184,40.85857734,137.63,137.57,2.16695061]
[1767893120377,0.04872063,137.62,137.57,10.09562177]
[1767893120578,7.31509768,137.63,137.59,0.65965623]
[1767893120890,9.48204829,137.63,137.58,2.82660684]
[1767893121894,7.31509768,137.63,137.58,2.82660684]
[1767893122199,7.31509768,137.63,137.59,2.16695061]
[1767893122409,9.48204829,137.63,137.58,10.09492408]
[1767893122888,0.04872063,137.61,137.57,9.43577214]
[1767893123598,0.04872063,137.61,137.57,7.92847776]
[1767893123798,0.04872063,137.61,137.57,10.09542837]
[1767893124277,27.64669262,137.63,137.58,0.65965623]
[1767893124682,7.26691374,137.61,137.58,0.65965623]
[1767893126823,7.2666144,137.62,137.59,0.65965623]
[1767893128805,7.26585773,137.63,137.59,0.65965623]
[1767893129316,25.42565923,137.66,137.63,0.65965623]
[1767893129496,7.26396564,137.67,137.64,0.65965623]
[1767893130597,40.84892578,137.68,137.64,0.65965623]
[1767893130797,0.04872063,137.64,137.59,2.16695061]
[1767893130995,0.04872063,137.63,137.58,7.92812204]
[1767893131295,0.04872063,137.63,137.58,2.82660684]
[1767893131497,0.04872063,137.62,137.57,9.43576817]
[1767893132019,2.16695061,137.63,137.58,2.82660684]
[1767893132211,2.16695061,137.63,137.59,0.65965623]
[1767893132596,7.26638569,137.62,137.59,0.65965623]
[1767893133502,7.31510632,137.62,137.58,2.16695061]
[1767893134815,7.26638569,137.62,137.59,0.7109649]
[1767893135020,7.31457836,137.63,137.59,0.7109649]
[1767893135322,9.43280834,137.63,137.59,0.7109649]
[1767893136621,7.26585773,137.63,137.59,2.87791551]
[1767893136806,33.58832299,137.66,137.62,0.7109649]
[1767893137010,133.79637238,137.66,137.62,0.7109649]
[1767893137209,12.69351062,137.65,137.62,0.7109649]
[1767893137418,7.26480203,137.65,137.62,0.7109649]
[1767893137927,7.26480203,137.65,137.63,0.7109649]
[1767893138721,20.52453262,137.66,137.64,2.87791551]
[1767893138905,7.26379664,137.67,137.66,0.7109649]
[1767893139121,18.15867893,137.68,137.66,0.7109649]
[1767893139311,7.26269155,137.69,137.66,0.7109649]
[1767893139708,7.26269155,137.69,137.66,2.87791551]
[1767893140740,25.41808999,137.7,137.66,2.87791551]
[1767893141902,25.41808999,137.7,137.67,0.7109649]
[1767893145126,27.5850406,137.7,137.67,0.7109649]
[1767893145300,0.04872063,137.69,137.65,2.16695061]
[1767893145501,27.5850406,137.7,137.66,0.7109649]
[1767893145805,27.5850406,137.7,137.62,18.16544843]
[1767893145806,0.04872063,137.67,137.63,2.16695061]
[1767893146126,2.16695061,137.68,137.64,0.7109649]
[1767893146324,0.04872063,137.67,137.62,0.7109649]
[1767893146523,0.04872063,137.67,137.63,2.16695061]
[1767893147112,0.04872063,137.66,137.62,2.87791551]
[1767893147417,0.04872063,137.67,137.62,2.87791551]
[1767893147622,9.47941788,137.67,137.62,2.87791551]
[1767893148002,27.63878448,137.67,137.62,0.7109649]
[1767893148210,27.63878448,137.67,137.62,2.87791551]
[1767893148602,27.59006385,137.67,137.63,0.7109649]
[1767893148803,27.63878448,137.67,137.63,0.7109649]
[1767893149517,27.59006385,137.67,137.63,0.7109649]
[1767893149827,2.16695061,137.66,137.61,0.7109649]
[1767893150331,0.04872063,137.63,137.58,23.40625486]
[1767893150626,2.16695061,137.63,137.59,0.7109649]
[1767893151036,2.16695061,137.62,137.59,0.7109649]
[1767893151245,2.16695061,137.62,137.55,25.7109649]
[1767893151246,2.16695061,137.6,137.55,25.7109649]
[1767893151536,0.04872063,137.59,137.54,0.2]
[1767893151720,4.88261359,137.61,137.52,0.2]
[1767893151721,2.16695061,137.55,137.52,0.2]
[1767893151903,2.16695061,137.54,137.52,0.9109649]
[1767893152108,0.28432314,137.59,137.53,0.7109649]
[1767893152327,2.16695061,137.55,137.52,0.2]
[1767893152529,0.28432314,137.59,137.52,0.2]
[1767893152720,5.80824511,137.56,137.52,0.9109649]
[1767893153519,5.80824511,137.54,137.52,0.9109649]
[1767893153726,13.07887273,137.54,137.52,0.9109649]
[1767893154026,5.80824511,137.54,137.52,0.9109649]
[1767893154225,7.27026722,137.55,137.52,0.9109649]
[1767893154407,5.80824511,137.56,137.53,0.7109649]
[1767893155015,7.26913332,137.57,137.53,0.7109649]
[1767893155221,13.07737843,137.57,137.53,0.7109649]
[1767893155830,7.26913332,137.57,137.53,0.7109649]
[1767893156415,13.07693489,137.58,137.53,0.7109649]
[1767893156919,5.80824511,137.58,137.54,0.7109649]
[1767893157231,13.07631051,137.59,137.54,0.7109649]
[1767893157835,5.80824511,137.58,137.54,0.7109649]
[1767893158049,7.2680654,137.59,137.54,0.7109649]
[1767893158214,5.80824511,137.58,137.54,0.7109649]
[1767893158408,5.80824511,137.58,137.5,13.36]
[1767893158409,0.31096489,137.54,137.43,3.76260217]
[1767893158615,5.80824511,137.47,137.43,3.76260217]
[1767893158933,5.80824511,137.47,137.41,5.80824511]
[1767893159126,5.80824511,137.47,137.42,5.80824511]
[1767893159324,5.80824511,137.48,137.41,13.26]
[1767893159535,5.80824511,137.48,137.42,13.0850878]
[1767893160236,5.80824511,137.48,137.4,7.27750155]
[1767893160237,5.80824511,137.46,137.4,7.27750155]
[1767893160424,5.80824511,137.46,137.42,0.7109649]
[1767893160627,25.45838995,137.48,137.42,0.7109649]
[1767893160817,5.80824511,137.47,137.42,0.7109649]
[1767893161017,5.80824511,137.48,137.43,0.7109649]
[1767893161533,5.80824511,137.47,137.43,0.7109649]
[1767893161837,25.66643744,137.49,137.43,0.7109649]
[1767893162042,5.80824511,137.47,137.43,0.7109649]
[1767893162223,5.80824511,137.48,137.43,0.7109649]
[1767893162426,5.80824511,137.48,137.44,0.66409111]
[1767893163125,5.80824511,137.47,137.44,0.66409111]
[1767893163641,18.18097664,137.51,137.45,0.66409111]
[1767893163810,7.27153009,137.53,137.47,0.66409111]
[1767893164010,7.27153009,137.53,137.46,13.28]
[1767893164011,7.27153009,137.53,137.49,0.66409111]
[1767893164335,0.10010845,137.52,137.48,13.28]
[1767893164515,7.27153009,137.53,137.48,13.94409111]
[1767893164720,16.71124966,137.53,137.48,0.66409111]
[1767893164926,16.71124966,137.53,137.49,0.66409111]
[1767893165321,9.43971957,137.52,137.49,0.66409111]
[1767893165519,9.43971957,137.51,137.49,0.66409111]
[1767893166033,9.43971957,137.53,137.49,0.66409111]
[1767893166717,9.43971957,137.53,137.49,13.94409111]
[1767893166913,9.43971957,137.53,137.49,0.66409111]
[1767893167118,9.43971957,137.53,137.49,13.94409111]
[1767893167329,7.48177764,137.54,137.49,21.21716739]
[1767893167526,16.71053232,137.54,137.5,0.68906823]
[1767893167840,16.71053232,137.54,137.49,21.24214451]
[1767893168233,0.21096489,137.57,137.51,0.68906823]
[1767893168539,18.17161267,137.58,137.51,0.68906823]
[1767893168540,9.43971957,137.55,137.51,0.68906823]
[1767893168853,9.54091441,137.52,137.47,0.68906823]
[1767893169020,9.54091441,137.52,137.48,13.28]
[1767893169021,9.43971957,137.51,137.48,13.28]
[1767893169336,9.43971957,137.52,137.48,13.96906823]
[1767893169538,16.71150252,137.52,137.48,0.68906823]
[1767893169739,16.71150252,137.52,137.47,7.27391342]
[1767893169740,9.54091441,137.49,137.43,7.96515782]
[1767893169929,9.43971957,137.47,137.44,13.28]
[1767893170123,9.43971957,137.47,137.44,13.96906823]
[1767893170329,9.43971957,137.45,137.44,13.28]
[1767893170525,9.43971957,137.45,137.39,18.19571881]
[1767893170526,9.65068446,137.45,137.39,0.68906823]
[1767893170733,0.14216157,137.48,137.39,0.68906823]